bitfinex-derivatives/quotes_BTCF0:USTF0_20250315
["timestamp","ask_amount","ask_price","bid_price","bid_amount"]
[1742057641288,0.0305,84436.0,84435.0,0.7392437]
[1742057641802,0.0305,84436.0,84435.0,0.7695437]
[1742057641996,0.0624,84436.0,84435.0,0.7695437]
[1742057642997,0.0634,84436.0,84435.0,0.7695437]
[1742057643901,0.1828423,84436.0,84435.0,0.7695437]
[1742057645802,0.0644,84436.0,84435.0,0.7695437]
[1742057646003,0.0309,84441.0,84438.0,0.0592191]
[1742057646203,0.0321,84440.0,84439.0,0.2118381]
[1742057646403,0.1505367,84440.0,84439.0,0.4518381]
[1742057649311,0.0341,84440.0,84439.0,0.4518381]
[1742057649702,0.0361,84440.0,84439.0,0.4518381]
[1742057649904,0.0361,84440.0,84439.0,0.8126381]
[1742057650104,0.0682,84440.0,84439.0,0.8126381]
[1742057650512,0.1866367,84440.0,84439.0,0.8126381]
[1742057650711,0.1866367,84440.0,84439.0,0.7821381]
[1742057650911,0.1866367,84440.0,84439.0,0.5421381]
[1742057651117,0.1866367,84440.0,84439.0,0.5111381]
[1742057651413,0.1866367,84440.0,84439.0,0.4792381]
[1742057657313,0.709,84440.0,84428.0,0.07108082]
[1742057657514,0.1184521,84429.0,84428.0,0.07108082]
[1742057658222,0.1832521,84429.0,84428.0,0.07108082]
[1742057658609,0.1832521,84429.0,84428.0,0.07208082]
[1742057659815,0.0648,84429.0,84428.0,0.07208082]
[1742057660009,0.0648,84429.0,84428.0,0.32208082]
[1742057660323,0.0329,84429.0,84428.0,0.38838082]
[1742057660910,0.0329,84429.0,84428.0,0.38738082]
[1742057661117,0.0329,84429.0,84428.0,0.38838082]
[1742057661921,0.1513521,84429.0,84428.0,0.38838082]
[1742057662127,0.1818521,84429.0,84428.0,0.38838082]
[1742057664020,0.1148,84430.0,84428.0,0.38838082]
[1742057664021,0.1148,84430.0,84429.0,0.1184521]
[1742057664220,4e-05,84430.0,84429.0,0.4123521]
[1742057664427,0.1184907,84430.0,84429.0,0.4123521]
[1742057665332,0.1507907,84430.0,84429.0,0.4123521]
[1742057666216,0.1507907,84430.0,84429.0,0.4133521]
[1742057666622,0.1507907,84430.0,84429.0,0.4143521]
[1742057670520,0.1507907,84430.0,84429.0,0.3811521]
[1742057671028,0.1507507,84430.0,84429.0,0.3811521]
[1742057671735,0.1507507,84430.0,84429.0,0.1511521]
[1742057673636,0.1507507,84430.0,84429.0,0.1819521]
[1742057679938,0.1507507,84430.0,84429.0,0.0635]
[1742057680139,0.1507507,84430.0,84429.0,0.1511521]
[1742057681541,0.1507507,84430.0,84429.0,0.1814521]
[1742057688546,0.4107507,84430.0,84429.0,0.063]
[1742057688938,0.4107507,84430.0,84425.0,0.1184574]
[1742057688939,0.1184563,84426.0,84425.0,0.1184574]
[1742057689252,0.2332163,84426.0,84425.0,0.04496087]
[1742057689552,0.2632163,84426.0,84425.0,0.04496087]
[1742057689738,0.2958163,84426.0,84425.0,0.04496087]
[1742057690251,0.2958163,84426.0,84425.0,0.04696087]
[1742057690939,0.2958163,84426.0,84425.0,0.04896087]
[1742057691750,0.2958163,84426.0,84425.0,0.16741867]
[1742057692139,0.2958163,84426.0,84425.0,0.19911867]
[1742057696755,0.2958163,84426.0,84425.0,0.08066087]
[1742057697741,0.2958163,84426.0,84425.0,0.19911867]
[1742057701254,0.1810563,84426.0,84425.0,0.43911867]
[1742057701446,0.1184563,84426.0,84425.0,0.43911867]
[1742057701651,0.1833563,84426.0,84425.0,0.19911867]
[1742057705258,0.2981163,84426.0,84425.0,0.19911867]
[1742057714662,0.2981163,84426.0,84425.0,0.08066087]
[1742057715561,0.2981163,84426.0,84425.0,0.19911867]
[1742057715751,0.2981163,84426.0,84425.0,0.16741867]
[1742057716061,0.2981163,84426.0,84425.0,0.13411867]
[1742057716652,0.2981163,84426.0,84425.0,0.19831867]
[1742057717066,0.2981163,84426.0,84425.0,0.07986087]
[1742057721867,0.2981163,84426.0,84425.0,0.0682]
[1742057722356,0.1833563,84426.0,84425.0,0.0682]
[1742057722556,0.2981163,84426.0,84425.0,0.0682]
[1742057723172,0.2981163,84426.0,84425.0,0.0372]
[1742057723367,0.5707163,84426.0,84425.0,0.004]
[1742057724271,0.118462,84422.0,84421.0,0.0327]
[1742057724574,0.739262,84422.0,84421.0,0.0327]
[1742057725161,0.541662,84422.0,84421.0,0.0327]
[1742057725469,0.541662,84422.0,84405.0,0.0592426]
[1742057725470,0.1184746,84413.0,84412.0,0.01177317]
[1742057725670,0.1184788,84410.0,84409.0,0.0305]
[1742057725858,0.1184788,84410.0,84409.0,0.0941]
[1742057727470,0.1164788,84410.0,84409.0,0.0941]
[1742057728370,0.1164788,84410.0,84409.0,0.0981]
[1742057728675,0.1164788,84410.0,84409.0,0.1011]
[1742057730466,0.1164788,84410.0,84409.0,0.2195802]
[1742057730665,0.1164788,84410.0,84409.0,0.1011]
[1742057733267,0.0592432,84405.0,84379.0,0.47676]
[1742057733576,0.177729,84405.0,84404.0,0.0639]
[1742057733781,0.292489,84405.0,84404.0,0.0639]
[1742057735581,0.654289,84405.0,84404.0,0.0639]
[1742057736980,0.653289,84405.0,84404.0,0.0649]
[1742057737569,0.653289,84405.0,84404.0,0.0659]
[1742057738478,0.903289,84405.0,84404.0,0.0659]
[1742057738679,0.653289,84405.0,84404.0,0.0659]
[1742057739581,0.653289,84405.0,84404.0,0.002]
[1742057739582,0.903289,84405.0,84404.0,0.002]
[1742057739884,0.73754747,84405.0,84383.0,0.1185159]
[1742057740089,0.1185083,84389.0,84388.0,0.033]
[1742057740377,0.2370468,84381.0,84380.0,0.1185151]
[1742057740576,0.2370468,84381.0,84380.0,0.1601712]
[1742057740978,0.2280468,84381.0,84380.0,0.1601712]
[1742057741174,0.2250468,84381.0,84380.0,0.1601712]
[1742057741375,0.2250468,84381.0,84380.0,0.2253712]
[1742057741878,0.2250468,84381.0,84380.0,0.2283712]
[1742057742378,0.2210468,84381.0,84380.0,0.2283712]
[1742057743079,0.2211268,84381.0,84380.0,0.2283712]
[1742057743282,0.2211268,84381.0,84380.0,0.2318112]
[1742057746774,0.0593418,84381.0,84380.0,0.2318112]
[1742057746979,0.0592618,84381.0,84380.0,0.2318112]
[1742057749778,0.0593418,84381.0,84380.0,0.2318112]
[1742057752489,0.0592618,84381.0,84380.0,0.2318112]
[1742057752680,0.0592618,84381.0,84380.0,0.2313712]
[1742057752989,0.0593418,84381.0,84380.0,0.2313712]
[1742057753288,0.0593418,84381.0,84380.0,0.2318112]
[1742057754186,0.0916418,84381.0,84380.0,0.2318112]
[1742057754485,0.1232418,84381.0,84380.0,0.2318112]
[1742057754682,0.0916418,84381.0,84380.0,0.2318112]
[1742057756794,0.1248418,84381.0,84380.0,0.2318112]
[1742057756989,0.1247618,84381.0,84380.0,0.2318112]
[1742057757881,0.1247618,84381.0,84380.0,0.2313712]
[1742057758087,0.1248418,84381.0,84380.0,0.2313712]
[1742057758281,0.1248418,84381.0,84380.0,0.2318112]
[1742057765397,0.1248418,84381.0,84380.0,0.2318112]
[1742057768290,0.06558,84381.0,84380.0,0.2318112]
[1742057768701,0.1840995,84381.0,84380.0,0.2318112]
[1742057774407,0.06558,84381.0,84380.0,0.2318112]
[1742057774999,0.1840995,84381.0,84380.0,0.2318112]
[1742057777008,0.1840995,84381.0,84380.0,0.166617]
[1742057778801,0.1840995,84381.0,84380.0,0.196617]
[1742057779303,0.1840995,84381.0,84380.0,0.228117]
[1742057779702,0.1840995,84381.0,84380.0,0.198117]
[1742057791345,0.1840995,84381.0,84380.0,0.208117]
[1742057792537,0.2988595,84381.0,84380.0,0.208117]
[1742057802450,0.2988595,84381.0,84380.0,0.0795961]
[1742057802850,0.2988595,84381.0,84380.0,0.0180961]
[1742057803453,0.2988595,84381.0,84380.0,0.0150961]
[1742057804053,0.2988595,84381.0,84380.0,0.0453961]
[1742057804655,0.2988595,84381.0,84380.0,0.0120961]
[1742057805656,0.2988595,84381.0,84380.0,0.0450961]
[1742057807363,0.1185995,84381.0,84380.0,0.2950961]
[1742057807552,0.1185995,84381.0,84380.0,0.477217]
[1742057808151,0.1839995,84381.0,84380.0,0.477217]
[1742057813366,0.0592646,84375.0,84372.0,0.17797249]
[1742057813667,0.3260494,84374.0,84373.0,0.0632]
[1742057813874,0.6060494,84374.0,84373.0,0.0632]
[1742057814256,0.6060494,84374.0,84373.0,0.0303]
[1742057814469,0.5760494,84374.0,84373.0,0.0303]
[1742057814662,0.5760494,84374.0,84373.0,0.0603]
[1742057815369,0.5760494,84374.0,84373.0,0.07239859]
[1742057815566,0.5760494,84374.0,84373.0,0.0603]
[1742057816458,0.9368494,84374.0,84373.0,0.0603]
[1742057817366,0.9368494,84374.0,84373.0,0.07233443]
[1742057818357,0.9368494,84374.0,84373.0,0.19086523]
[1742057818558,0.9368494,84374.0,84373.0,0.07233443]
[1742057820172,0.9368494,84374.0,84373.0,0.19086523]
[1742057820758,0.5458494,84374.0,84373.0,0.19086523]
[1742057823168,0.2654494,84374.0,84373.0,0.19086523]
[1742057823366,0.0592636,84376.0,84375.0,0.1185279]
[1742057823571,0.4339836,84376.0,84375.0,0.3585279]
[1742057823960,0.4339836,84376.0,84375.0,0.1185279]
[1742057825070,0.4349836,84376.0,84375.0,0.1185279]
[1742057825773,0.4359836,84376.0,84375.0,0.1185279]
[1742057825973,0.5003836,84376.0,84375.0,0.1185279]
[1742057830277,0.0592661,84372.0,84368.0,0.0592688]
[1742057830579,0.2437018,84371.0,84370.0,0.118535]
[1742057830774,0.5037018,84371.0,84370.0,0.118535]
[1742057831080,0.5037018,84371.0,84370.0,0.13030349]
[1742057841694,0.5037018,84371.0,84370.0,0.16270349]
[1742057844080,0.5037018,84371.0,84370.0,0.19500349]
[1742057845882,0.2437018,84371.0,84370.0,0.19500349]
[1742057854190,0.2437018,84371.0,84370.0,0.04416849]
[1742057854391,0.5037018,84371.0,84370.0,0.16270349]
[1742057855291,0.5037018,84371.0,84370.0,0.0324]
[1742057855494,0.5037018,84371.0,84370.0,0.150935]
[1742057857586,0.5037018,84371.0,84370.0,0.0324]
[1742057858201,0.5037018,84371.0,84370.0,0.0646]
[1742057858605,0.5037018,84371.0,84370.0,0.183135]
[1742057860402,0.5340018,84371.0,84370.0,0.183135]
[1742057861798,0.5340018,84371.0,84370.0,0.0646]
[1742057861995,0.5340018,84371.0,84370.0,0.183135]
[1742057864602,0.5037018,84371.0,84370.0,0.183135]
[1742057870104,0.1251668,84371.0,84370.0,0.393135]
[1742057872511,0.1251668,84371.0,84370.0,0.394135]
[1742057873418,0.3751668,84371.0,84370.0,0.394135]
[1742057883129,0.1185298,84374.0,84373.0,0.1777926]
[1742057883330,0.3885298,84374.0,84373.0,0.4177926]
[1742057883523,0.4513294,84374.0,84373.0,0.4177926]
[1742057884640,0.3328,84374.0,84373.0,0.4177926]
[1742057884839,0.4513294,84374.0,84373.0,0.4810926]
[1742057885824,0.3885294,84374.0,84373.0,0.4810926]
[1742057886642,0.0592561,84387.0,84375.0,0.0592636]
[1742057886941,0.1186001,84381.0,84380.0,0.1185209]
[1742057887130,0.1186001,84381.0,84380.0,0.3485209]
[1742057887441,0.1493001,84381.0,84380.0,0.3485209]
[1742057887634,0.06398,84381.0,84380.0,0.4132209]
[1742057887836,0.00017769,84389.0,84388.0,0.1185097]
[1742057888029,0.00017769,84389.0,84388.0,1.1493097]
[1742057888229,0.00017769,84389.0,84388.0,1.1993097]
[1742057888430,0.00017769,84389.0,84388.0,1.2643097]
[1742057888830,0.00017769,84389.0,84388.0,1.0443097]
[1742057889135,0.00417769,84389.0,84388.0,1.0443097]
[1742057889641,0.00917769,84389.0,84388.0,1.0443097]
[1742057889839,0.07347769,84389.0,84388.0,1.0443097]
[1742057890039,0.07347769,84389.0,84388.0,1.00599049]
[1742057890040,0.19198599,84389.0,84388.0,1.00599049]
[1742057890230,0.44198599,84389.0,84388.0,0.13019049]
[1742057890540,0.07347769,84389.0,84388.0,0.13019049]
[1742057890731,0.46198599,84389.0,84388.0,0.13019049]
[1742057891040,0.19198599,84389.0,84388.0,0.13019049]
[1742057891342,0.19198599,84389.0,84388.0,0.19459049]
[1742057891343,0.47198599,84389.0,84388.0,0.19459049]
[1742057894144,0.19198599,84389.0,84388.0,0.19459049]
[1742057894445,0.45198599,84389.0,84388.0,0.19459049]
[1742057898242,0.33347769,84389.0,84388.0,0.45459049]
[1742057898447,0.07347769,84389.0,84388.0,0.45459049]
[1742057899343,0.19198599,84389.0,84388.0,0.45459049]
[1742057910260,0.42198599,84389.0,84388.0,0.45459049]
[1742057910647,0.0592583,84384.0,84381.0,0.3608]
[1742057910850,0.1185181,84382.0,84381.0,0.5198167]
[1742057911257,0.1818181,84382.0,84381.0,0.5198167]
[1742057912863,0.1818181,84382.0,84381.0,0.53156717]
[1742057913057,0.1848181,84382.0,84381.0,0.53156717]
[1742057914166,0.1868181,84382.0,84381.0,0.53156717]
[1742057919369,0.1868181,84382.0,84381.0,0.17076717]
[1742057919564,0.4668181,84382.0,84381.0,0.17076717]
[1742057920668,0.4658181,84382.0,84381.0,0.17076717]
[1742057921869,0.4638181,84382.0,84381.0,0.17076717]
[1742057923159,0.1838181,84382.0,84381.0,0.17076717]
[1742057923361,0.4338181,84382.0,84381.0,0.17076717]
[1742057923670,0.4438181,84382.0,84381.0,0.17076717]
[1742057924071,0.4438181,84382.0,84381.0,0.20366717]
[1742057924370,0.4448181,84382.0,84381.0,0.20366717]
[1742057924963,0.4418181,84382.0,84381.0,0.20366717]
[1742057925164,0.1848181,84382.0,84381.0,0.20366717]
[1742057925461,0.1848181,84382.0,84381.0,0.23686717]
[1742057925669,0.0663,84382.0,84381.0,0.23686717]
[1742057926761,0.1848181,84382.0,84381.0,0.23686717]
[1742057927364,0.1828181,84382.0,84381.0,0.23686717]
[1742057927564,0.1848181,84382.0,84381.0,0.23686717]
[1742057934069,0.0663,84382.0,84381.0,0.23686717]
[1742057935080,0.1848181,84382.0,84381.0,0.23686717]
[1742057943185,0.0663,84382.0,84381.0,0.23686717]
[1742057943380,0.035,84382.0,84381.0,0.67686717]
[1742057943576,0.035,84382.0,84381.0,0.23686717]
[1742057943775,0.035,84382.0,84381.0,0.24686717]
[1742057946573,0.035,84382.0,84381.0,0.25686717]
[1742057946978,0.035,84382.0,84381.0,0.24686717]
[1742057949692,0.1535181,84382.0,84381.0,0.21366717]
[1742057950187,0.4135181,84382.0,84381.0,0.21366717]
[1742057950578,0.3835181,84382.0,84381.0,0.21366717]
[1742057950781,0.3835181,84382.0,84381.0,0.18076717]
[1742057950981,0.035,84382.0,84381.0,0.21266717]
[1742057951186,0.035,84382.0,84381.0,0.24296717]
[1742057954889,0.1535181,84382.0,84381.0,0.21266717]
[1742057955079,0.1839181,84382.0,84381.0,0.21266717]
[1742057957885,0.0654,84382.0,84381.0,0.21266717]
[1742057962991,0.00017769,84389.0,84388.0,0.1185097]
[1742057963288,0.00017769,84389.0,84388.0,0.3485097]
[1742057964087,0.00017769,84389.0,84388.0,0.3817097]
[1742057964288,0.03337769,84389.0,84388.0,0.7958097]
[1742057964583,0.03737769,84389.0,84388.0,0.7958097]
[1742057964989,0.00417769,84389.0,84388.0,0.7958097]
[1742057965191,0.04037769,84389.0,84388.0,0.7958097]
[1742057965489,0.03937769,84389.0,84388.0,0.7958097]
[1742057965681,0.03637769,84389.0,84388.0,0.7958097]
[1742057965884,0.03937769,84389.0,84388.0,0.7858097]
[1742057966889,0.15788599,84389.0,84388.0,0.7858097]
[1742057967092,0.18788599,84389.0,84388.0,0.7858097]
[1742057970387,0.18788599,84389.0,84388.0,0.7526097]
[1742057971690,0.06937769,84389.0,84388.0,0.7526097]
[1742057971890,0.06937769,84389.0,84388.0,0.7826097]
[1742057972294,0.06937769,84389.0,84388.0,1.0026097]
[1742057972896,0.06937769,84389.0,84388.0,0.9726097]
[1742057973084,0.18788599,84389.0,84388.0,0.9726097]
[1742057973284,0.18788599,84389.0,84388.0,0.7526097]
[1742057973999,0.06937769,84389.0,84388.0,0.7526097]
[1742057974193,0.06937769,84389.0,84388.0,0.7726097]
[1742057974384,0.06937769,84389.0,84388.0,0.7526097]
[1742057975495,0.06937769,84389.0,84388.0,0.7826097]
[1742057976298,0.06937769,84389.0,84388.0,0.4218097]
[1742057976592,0.06937769,84389.0,84388.0,0.7526097]
[1742057977497,0.06937769,84389.0,84388.0,0.7826097]
[1742057978003,0.06937769,84389.0,84388.0,0.7526097]
[1742057978205,0.06937769,84389.0,84388.0,0.7826097]
[1742057980101,0.03937769,84389.0,84388.0,1.0226097]
[1742057980295,0.0301,84394.0,84393.0,0.1185027]
[1742057980490,0.0301,84394.0,84393.0,0.8185027]
[1742057980693,0.0301,84394.0,84393.0,0.8485027]
[1742057981003,0.0301,84394.0,84393.0,0.9111027]
[1742057981690,0.0351,84394.0,84393.0,0.9111027]
[1742057981891,0.0391,84394.0,84393.0,0.6711027]
[1742057982091,0.0391,84394.0,84393.0,0.6411027]
[1742057982294,0.1576013,84394.0,84393.0,0.6411027]
[1742057982495,0.1883013,84394.0,84393.0,0.6411027]
[1742057982693,0.1883013,84394.0,84393.0,0.5785027]
[1742057983102,0.0698,84394.0,84393.0,0.5785027]
[1742057983301,0.1883013,84394.0,84393.0,0.5785027]
[1742057983604,0.1883013,84394.0,84393.0,0.6418027]
[1742057985303,0.1883013,84394.0,84393.0,1.0026027]
[1742057998106,0.1883013,84394.0,84393.0,0.6418027]
[1742058000200,0.1833013,84394.0,84393.0,0.1818027]
[1742058000406,0.4453013,84394.0,84393.0,0.1918027]
[1742058000807,0.1853013,84394.0,84393.0,0.1918027]
[1742058005107,0.4453013,84394.0,84393.0,0.0411]
[1742058005308,0.1185027,84393.0,84392.0,0.1185038]
[1742058005622,0.1185027,84393.0,84392.0,0.3485038]
[1742058005817,0.1827027,84393.0,84392.0,0.3485038]
[1742058006010,0.1827027,84393.0,84392.0,0.3810038]
[1742058006325,0.1827027,84393.0,84392.0,0.4138038]
[1742058006523,0.1857027,84393.0,84392.0,0.4138038]
[1742058006712,0.1887027,84393.0,84392.0,0.4138038]
[1742058007807,0.1887027,84393.0,84392.0,0.4461038]
[1742058009617,0.1887027,84393.0,84392.0,0.4138038]
[1742058016617,0.0702,84393.0,84392.0,0.4438038]
[1742058016813,0.0702,84393.0,84392.0,0.8738038]
[1742058019327,0.0702,84393.0,84392.0,0.6738038]
[1742058020515,0.0702,84393.0,84392.0,1.0346038]
[1742058021933,0.13064806,84409.0,84401.0,0.1184914]
[1742058022127,0.13064806,84409.0,84401.0,0.3484914]
[1742058022128,0.2957432,84407.0,84401.0,0.3484914]
[1742058022333,4e-05,84403.0,84401.0,0.3484914]
[1742058022523,4e-05,84403.0,84401.0,0.3815914]
[1742058023130,0.00517769,84402.0,84401.0,0.8425914]
[1742058023334,0.01017769,84402.0,84401.0,0.8733914]
[1742058023627,0.07197769,84402.0,84401.0,0.8733914]
[1742058023834,0.07197769,84402.0,84401.0,0.64514575]
[1742058025427,0.07197769,84402.0,84401.0,0.67514575]
[1742058027841,0.06697769,84402.0,84401.0,0.67514575]
[1742058028034,0.06697769,84402.0,84401.0,0.67714575]
[1742058028425,0.06697769,84402.0,84401.0,1.03794575]
[1742058028621,0.06697769,84402.0,84401.0,1.03594575]
[1742058028832,0.06697769,84402.0,84401.0,1.03894575]
[1742058029535,0.06197769,84402.0,84401.0,1.03994575]
[1742058030335,0.06197769,84402.0,84401.0,1.03794575]
[1742058030638,0.06197769,84402.0,84401.0,1.03994575]
[1742058031026,0.06197769,84402.0,84401.0,1.03694575]
[1742058031227,0.06197769,84402.0,84401.0,1.03994575]
[1742058031433,0.06197769,84402.0,84401.0,1.04094575]
[1742058032132,0.06197769,84402.0,84401.0,1.03994575]
[1742058032729,0.06197769,84402.0,84401.0,1.03894575]
[1742058033734,0.06197769,84402.0,84401.0,1.03994575]
[1742058034427,0.06197769,84402.0,84401.0,1.03894575]
[1742058034628,0.06197769,84402.0,84401.0,1.25894575]
[1742058034840,0.03147769,84402.0,84401.0,1.25894575]
[1742058035140,0.0326,84406.0,84405.0,0.1184858]
[1742058035351,0.1501734,84414.0,84413.0,0.1184746]
[1742058035523,0.0326,84416.0,84415.0,0.1184718]
[1742058035722,0.0326,84416.0,84415.0,0.7984718]
[1742058036127,0.1510704,84416.0,84415.0,0.38311142]
[1742058036326,0.1827704,84416.0,84415.0,0.38311142]
[1742058037139,0.19368316,84416.0,84415.0,0.38311142]
[1742058037439,0.19568316,84416.0,84415.0,0.38311142]
[1742058037841,0.19668316,84416.0,84415.0,0.38311142]
[1742058038340,0.19938684,84416.0,84415.0,0.38311142]
[1742058038535,0.20038684,84416.0,84415.0,0.38311142]
[1742058038926,0.19938684,84416.0,84415.0,0.38311142]
[1742058039635,0.19838684,84416.0,84415.0,0.38311142]
[1742058040233,0.1827704,84416.0,84415.0,0.38311142]
[1742058044244,0.0643,84416.0,84415.0,0.38311142]
[1742058044542,0.0326,84416.0,84415.0,0.38311142]
[1742058046230,0.1185033,84422.0,84421.0,0.1184634]
[1742058046444,0.1505033,84422.0,84421.0,0.3384634]
[1742058046941,0.1505033,84422.0,84421.0,0.3987634]
[1742058047144,0.1504633,84422.0,84421.0,0.3987634]
[1742058047537,0.1505033,84422.0,84421.0,0.3987634]
[1742058047847,0.1515033,84422.0,84421.0,0.3988034]
[1742058048738,0.1535033,84422.0,84421.0,0.3988034]
[1742058049439,0.06664,84422.0,84421.0,0.3988034]
[1742058051936,0.0666,84422.0,84421.0,0.3988034]
[1742058052140,0.0666,84422.0,84421.0,0.3987634]
[1742058052646,0.00304,84422.0,84421.0,0.3988034]
[1742058052846,0.00304,84422.0,84421.0,0.4888034]
[1742058053238,0.00304,84422.0,84421.0,0.9388034]
[1742058054337,0.1184424,84436.0,84429.0,0.0592256]
[1742058054542,0.08683591,84450.0,84437.0,0.1184409]
[1742058054543,0.2335574,84440.0,84437.0,0.1184409]
[1742058054853,0.3392199,84438.0,84437.0,0.3684409]
[1742058055443,0.3392199,84438.0,84437.0,0.1184409]
[1742058055942,0.3442199,84438.0,84437.0,0.1184409]
[1742058056142,0.4094199,84438.0,84437.0,0.1508409]
[1742058057543,0.4094199,84438.0,84437.0,0.1184409]
[1742058058044,0.4114199,84438.0,84437.0,0.1184409]
[1742058058352,0.1184409,84437.0,84436.0,0.0325]
[1742058058657,0.1184423,84436.0,84435.0,0.1776637]
[1742058058843,0.4412423,84436.0,84435.0,0.1776637]
[1742058059043,0.4412423,84436.0,84435.0,0.18933506]
[1742058059447,0.1812423,84436.0,84435.0,0.18933506]
[1742058059643,0.4112423,84436.0,84435.0,0.18933506]
[1742058060756,0.42208782,84436.0,84435.0,0.18933506]
[1742058060959,0.42708782,84436.0,84435.0,0.18933506]
[1742058061342,0.4192423,84436.0,84435.0,0.18933506]
[1742058061859,0.43009361,84436.0,84435.0,0.01167136]
[1742058062054,0.43009361,84436.0,84435.0,0.1184437]
[1742058062449,0.43009361,84436.0,84435.0,0.1812437]
[1742058063158,0.43011291,84436.0,84435.0,0.1812437]
[1742058063563,0.43011291,84436.0,84435.0,0.19297443]
[1742058065369,0.4192423,84436.0,84435.0,0.1812437]
[1742058067957,0.6160423,84436.0,84435.0,0.1812437]
[1742058068160,0.4192423,84436.0,84435.0,0.1812437]
[1742058074866,0.4192423,84436.0,84435.0,0.0628]
[1742058075069,0.1184479,84432.0,84431.0,0.0641]
[1742058075256,0.3784479,84432.0,84431.0,0.0641]
[1742058075456,0.4761479,84432.0,84431.0,0.0641]
[1742058076762,0.49127593,84432.0,84431.0,0.0641]
[1742058077670,0.49527593,84432.0,84431.0,0.0641]
[1742058079371,0.49527593,84432.0,84431.0,0.1825493]
[1742058081074,0.1907479,84432.0,84431.0,0.1825493]
[1742058081375,0.2227479,84432.0,84431.0,0.1825493]
[1742058081559,0.1907479,84432.0,84431.0,0.1825493]
[1742058081764,0.007,84432.0,84431.0,0.1825493]
[1742058082167,0.1254479,84432.0,84431.0,0.1825493]
[1742058082662,0.007,84432.0,84431.0,0.5433493]
[1742058082870,0.007,84432.0,84431.0,0.7633493]
[1742058088265,0.007,84432.0,84431.0,0.7833493]
[1742058088579,0.007,84432.0,84431.0,0.7633493]
[1742058092479,0.007,84432.0,84431.0,0.7733493]
[1742058094372,0.007,84432.0,84431.0,0.4125493]
[1742058094570,0.007,84432.0,84431.0,0.7733493]
[1742058094980,0.007,84432.0,84431.0,0.7833493]
[1742058099381,0.14728,84444.0,84443.0,0.1184325]
[1742058099587,0.17788,84444.0,84443.0,0.3184325]
[1742058100082,0.2963111,84444.0,84443.0,0.1184325]
[1742058100390,0.2963111,84444.0,84443.0,0.1485325]
[1742058100590,0.3303111,84444.0,84443.0,0.1485325]
[1742058100774,0.3303111,84444.0,84443.0,0.1604627]
[1742058101176,0.6203111,84444.0,84443.0,0.1604627]
[1742058101384,0.6243111,84444.0,84443.0,0.1485325]
[1742058103493,0.6243111,84444.0,84431.0,0.4792469]
[1742058103494,0.1184479,84432.0,84431.0,0.4792469]
[1742058103679,0.1184479,84432.0,84431.0,0.5976949]
[1742058104088,0.3984479,84432.0,84431.0,0.6308949]
[1742058105181,0.4014479,84432.0,84431.0,0.6308949]
[1742058106194,0.4024479,84432.0,84431.0,0.2700949]
[1742058106893,0.4647479,84432.0,84431.0,0.2700949]
[1742058107682,0.1847479,84432.0,84431.0,0.2700949]
[1742058108190,0.1847479,84432.0,84431.0,0.1516493]
[1742058108394,0.1184507,84430.0,84429.0,0.00017769]
[1742058108593,0.4084507,84430.0,84429.0,0.15152979]
[1742058108891,0.1184507,84430.0,84429.0,0.03307769]
[1742058109085,0.13027645,84430.0,84429.0,0.03307769]
[1742058109292,0.13027645,84430.0,84429.0,0.15152979]
[1742058109493,0.1184507,84430.0,84429.0,0.15152979]
[1742058109691,0.1224507,84430.0,84429.0,0.15152979]
[1742058114396,0.1224507,84430.0,84429.0,0.18242979]
[1742058121699,0.1204507,84430.0,84429.0,0.18242979]
[1742058122303,0.1194507,84430.0,84429.0,0.18242979]
[1742058123416,0.1184507,84430.0,84429.0,0.18242979]
[1742058125422,0.1184507,84430.0,84429.0,0.19242979]
[1742058127812,0.1184507,84430.0,84429.0,0.55322979]
[1742058138014,0.2329188,84439.0,84438.0,0.1184381]
[1742058138218,0.2329188,84439.0,84438.0,0.1814381]
[1742058138422,0.2945188,84439.0,84438.0,0.2135381]
[1742058140025,0.2955188,84439.0,84438.0,0.2135381]
[1742058140326,0.1830388,84439.0,84438.0,0.2135381]
[1742058140618,0.1214388,84439.0,84438.0,0.8343381]
[1742058140821,0.1545388,84439.0,84438.0,0.8343381]
[1742058141022,0.1866388,84439.0,84438.0,0.8343381]
[1742058143411,0.1846388,84439.0,84438.0,0.8343381]
[1742058143619,0.1846388,84439.0,84438.0,0.84601755]
[1742058143918,0.1214388,84439.0,84438.0,0.84601755]
[1742058144320,0.1526388,84439.0,84438.0,0.84601755]
[1742058145122,0.003,84439.0,84438.0,0.84601755]
[1742058147105,0.1214381,84439.0,84438.0,0.84601755]
[1742058147610,0.1527381,84439.0,84438.0,0.84601755]
[1742058149630,0.4327381,84439.0,84438.0,0.81521755]
[1742058150325,0.1527381,84439.0,84438.0,0.81521755]
[1742058152512,0.3827381,84439.0,84438.0,0.45441755]
[1742058153723,0.3827381,84439.0,84438.0,0.4427381]
[1742058156510,0.3827381,84439.0,84438.0,0.0321]
[1742058156723,0.1184409,84437.0,84436.0,0.0308]
[1742058156927,0.1184507,84430.0,84423.0,0.0592299]
[1742058157222,0.3684507,84430.0,84429.0,0.14942979]
[1742058157816,0.4318507,84430.0,84429.0,0.14942979]
[1742058159816,0.44354585,84430.0,84429.0,0.14942979]
[1742058161427,0.44354585,84430.0,84429.0,0.03097769]
[1742058161428,0.44454585,84430.0,84429.0,0.03097769]
[1742058161813,0.44554585,84430.0,84429.0,0.03097769]
[1742058163219,0.19554585,84430.0,84429.0,0.03097769]
[1742058163417,0.43554585,84430.0,84429.0,0.03097769]
[1742058163617,0.43554585,84430.0,84429.0,0.06197769]
[1742058164724,0.19554585,84430.0,84429.0,0.06197769]
[1742058164928,0.43554585,84430.0,84429.0,0.06197769]
[1742058172836,0.43554585,84430.0,84429.0,0.03097769]
[1742058174230,0.4238507,84430.0,84429.0,0.06147769]
[1742058175735,0.43563766,84430.0,84429.0,0.06147769]
[1742058175931,0.4238507,84430.0,84429.0,0.06147769]
[1742058178741,0.43583242,84430.0,84429.0,0.06147769]
[1742058179540,0.43583242,84430.0,84429.0,0.17992979]
[1742058180841,0.4238507,84430.0,84429.0,0.17992979]
[1742058184741,0.4238507,84430.0,84429.0,0.06147769]
[1742058184936,0.4238507,84430.0,84429.0,0.17992979]
[1742058190973,0.1838507,84430.0,84429.0,0.17992979]
[1742058194774,0.1838507,84430.0,84429.0,0.06147769]
[1742058194972,0.4638507,84430.0,84429.0,0.17992979]
[1742058195178,0.5783307,84430.0,84429.0,0.17992979]
[1742058195674,0.0592291,84425.0,84402.0,0.6449621]
[1742058195872,0.1184732,84414.0,84413.0,0.0326]
[1742058196064,0.1184816,84408.0,84405.0,0.1184853]
[1742058196265,0.1184816,84408.0,84407.0,0.23]
[1742058196459,0.3884816,84408.0,84407.0,0.23]
[1742058196667,0.118483,84407.0,84406.0,0.1510836]
[1742058196865,0.408183,84407.0,84406.0,0.1510836]
[1742058197485,0.404183,84407.0,84406.0,0.1510836]
[1742058197770,0.404183,84407.0,84406.0,0.0326]